bitfinex-derivatives/quotes_SOLF0:USTF0_20250903
["timestamp","ask_amount","ask_price","bid_price","bid_amount"]
[1756908410176,7.25,212.01,211.87,7.8]
[1756908410385,7.25,212.01,211.87,131.66]
[1756908410585,7.25,212.01,211.87,7.8]
[1756908410784,35.36,212.07,211.85,316.84]
[1756908410785,7.25,211.97,211.85,316.84]
[1756908411284,7.25,211.97,211.83,103.89947083]
[1756908411977,5.27647559,211.98,211.83,103.89947083]
[1756908412176,5.27647559,211.94,211.83,103.89947083]
[1756908412482,7.25,211.93,211.83,103.89947083]
[1756908413279,7.25,211.93,211.78,123.86]
[1756908413585,12.3,211.96,211.69,7.8]
[1756908413586,5.27647559,211.9,211.69,7.8]
[1756908413883,7.25,211.85,211.69,7.8]
[1756908414280,12.52647559,211.94,211.72,7.8]
[1756908414582,12.52647559,211.94,211.76,7.8]
[1756908414776,12.52647559,211.94,211.77,11.32]
[1756908414978,7.25,211.93,211.76,7.8]
[1756908415177,7.25,211.93,211.76,21.02]
[1756908415383,7.25,211.93,211.76,7.8]
[1756908415582,7.25,211.93,211.77,7.8]
[1756908416988,7.25,211.93,211.8,7.8]
[1756908418787,316.94,211.95,211.82,7.8]
[1756908419183,7.25,211.94,211.82,7.8]
[1756908420789,123.9,212.0,211.82,7.8]
[1756908420790,7.25,212.01,211.84,7.8]
[1756908420985,7.25,212.01,211.84,73.8763]
[1756908421191,7.25,212.01,211.88,7.8]
[1756908421384,71.63,212.05,211.92,7.8]
[1756908421784,7.25,212.04,211.87,7.8]
[1756908422094,7.25,212.04,211.87,12.0472]
[1756908422290,7.25,212.04,211.88,5.27647559]
[1756908422492,7.25,212.04,211.89,7.8]
[1756908422797,7.25,212.04,211.9,7.8]
[1756908422984,317.1,212.07,211.92,5.27647559]
[1756908423190,7.25,212.09,211.93,12.046]
[1756908423592,7.25,212.09,211.94,66.9]
[1756908424086,7.25,212.09,211.96,5.27647559]
[1756908424283,7.25,212.14,211.99,7.8]
[1756908424790,12.52647559,212.14,211.99,7.8]
[1756908429397,7.25,212.09,211.93,20.62]
[1756908429893,7.25,212.09,211.93,7.8]
[1756908431701,7.25,212.09,211.93,12.046]
[1756908431893,7.25,212.09,211.93,7.8]
[1756908432497,7.25,212.09,211.94,5.27647559]
[1756908432701,7.25,212.09,211.96,7.55]
[1756908433700,7.13,212.07,211.91,7.55]
[1756908434297,7.13,212.03,211.91,7.55]
[1756908434892,7.13,212.03,211.87,7.55]
[1756908435097,7.13,212.02,211.87,7.55]
[1756908435898,7.13,212.02,211.85,129.07647559]
[1756908435899,7.13,212.02,211.89,7.55]
[1756908436104,12.40647559,212.06,211.9,7.55]
[1756908437206,7.13,212.01,211.9,7.55]
[1756908438602,7.13,212.01,211.85,7.55]
[1756908440205,7.13,212.01,211.83,123.8]
[1756908440510,7.13,212.01,211.84,7.55]
[1756908440705,7.13,212.01,211.86,4.2474]
[1756908440903,7.13,212.01,211.87,7.55]
[1756908441706,7.13,211.97,211.87,7.55]
[1756908441911,7.13,211.97,211.82,92.33]
[1756908443606,7.13,211.97,211.83,7.55]
[1756908444003,7.13,211.97,211.86,7.55]
[1756908444403,5.27647559,212.02,211.86,7.55]
[1756908444599,7.13,212.01,211.88,7.55]
[1756908445305,7.13,212.01,211.9,7.55]
[1756908447309,69.12,212.05,211.9,7.55]
[1756908448310,69.12,212.05,211.91,7.55]
[1756908449404,7.13,212.04,211.91,7.55]
[1756908451306,5.26738605,212.09,211.92,5.27647559]
[1756908451503,5.26738605,212.09,211.93,7.55]
[1756908451504,7.13,212.09,211.93,7.55]
[1756908451901,7.13,212.09,211.95,7.55]
[1756908452405,7.13,212.09,211.97,7.55]
[1756908452607,7.13,212.14,211.97,7.55]
[1756908452817,7.13,212.14,212.01,7.55]
[1756908453107,7.13,212.14,212.03,7.55]
[1756908453301,7.13,212.18,212.03,7.55]
[1756908456415,7.13,212.18,212.04,7.55]
[1756908458810,7.13,212.18,212.05,7.55]
[1756908459411,7.13,212.14,212.05,7.55]
[1756908459611,7.13,212.14,212.01,7.55]
[1756908461118,7.13,212.11,211.96,7.55]
[1756908463615,5.26738605,212.17,211.96,7.72]
[1756908463816,7.7,212.16,211.96,7.72]
[1756908464418,7.7,212.16,212.0,7.72]
[1756908465015,7.7,212.16,212.01,4.2443]
[1756908465321,7.7,212.16,212.03,7.72]
[1756908465522,7.7,212.16,212.04,4.2436]
[1756908466117,7.7,212.16,212.05,7.72]
[1756908466318,7.7,212.16,212.05,11.9634]
[1756908466518,16.07959,212.21,212.06,7.72]
[1756908466919,8.37959,212.21,212.04,7.72]
[1756908467220,8.37959,212.21,212.1,7.72]
[1756908467418,8.37959,212.21,212.12,7.72]
[1756908467723,8.37959,212.21,212.15,7.72]
[1756908468624,8.37959,212.21,212.16,4.2413]
[1756908468924,8.37959,212.21,212.17,7.72]
[1756908469119,8.37959,212.21,212.16,4.2413]
[1756908469421,8.37959,212.21,212.17,7.72]
[1756908470021,8.37959,212.21,212.16,4.2413]
[1756908470218,8.37959,212.21,212.17,7.72]
[1756908470420,8.37959,212.21,212.18,4.241]
[1756908470623,8.37959,212.21,212.2,7.72]
[1756908472129,8.37959,212.21,212.2,8.2]
[1756908474126,8.37959,212.21,212.2,131.16]
[1756908475633,8.37959,212.21,212.2,7.72]
[1756908475834,8.37959,212.21,212.2,131.16]
[1756908476825,8.37959,212.21,212.14,7.72]
[1756908477125,8.37959,212.21,212.15,123.4]
[1756908477328,8.37959,212.21,212.15,127.6415]
[1756908477729,8.37959,212.21,212.15,4.2415]
[1756908477927,8.37959,212.21,212.17,7.72]
[1756908478122,8.37959,212.21,212.18,131.12]
[1756908479026,8.37959,212.21,212.18,123.4]
[1756908479232,8.37959,212.21,212.19,7.72]
[1756908479531,8.37959,212.21,212.2,11.9606]
[1756908479926,8.37959,212.21,212.14,7.72]
[1756908480529,8.37959,212.21,212.15,121.24]
[1756908481632,8.37959,212.21,212.16,123.36]
[1756908482128,8.37959,212.21,212.17,123.36]
[1756908483031,8.37959,212.21,212.1,11.9624]
[1756908483032,7.7,212.2,212.1,7.72]
[1756908483232,7.7,212.2,212.11,123.34]
[1756908483727,7.7,212.2,212.08,316.96]
[1756908484128,7.7,212.2,212.09,123.34]
[1756908485732,8.37959,212.21,212.08,316.96]
[1756908485922,7.7,212.2,212.08,316.96]
[1756908486130,7.7,212.2,212.08,123.32]
[1756908486530,7.7,212.15,212.01,7.72]
[1756908486726,8.41196103,212.16,212.02,85.26]
[1756908486932,7.7,212.15,212.02,85.26]
[1756908487128,8.41196103,212.16,212.02,85.26]
[1756908487333,7.7,212.15,212.02,85.26]
[1756908487734,7.7,212.15,212.02,89.504]
[1756908487929,7.7,212.18,212.01,7.72]
[1756908488131,8.41196103,212.16,212.01,7.72]
[1756908488333,8.41196103,212.16,212.01,93.18]
[1756908488334,7.7,212.15,212.01,93.18]
[1756908489435,7.7,212.15,212.01,97.4243]
[1756908490136,7.7,212.15,212.03,4.244]
[1756908491535,7.7,212.15,212.01,93.18]
[1756908492638,7.7,212.15,212.02,7.3]
[1756908493233,7.68,212.2,212.02,7.3]
[1756908493429,7.68,212.2,212.05,7.3]
[1756908493632,8.37959,212.21,212.04,66.0138]
[1756908493633,8.37959,212.21,212.1,4.2426]
[1756908493833,8.37959,212.21,212.11,130.62]
[1756908494339,8.37959,212.21,212.12,11.5422]
[1756908494738,8.37959,212.21,212.12,7.3]
[1756908495237,8.37959,212.21,212.13,123.3]
[1756908495828,8.37959,212.21,212.12,7.3]
[1756908496029,7.68,212.2,212.14,123.3]
[1756908496535,7.68,212.2,212.12,7.3]
[1756908496739,7.68,212.2,212.1,123.28]
[1756908497035,8.37959,212.21,212.11,7.3]
[1756908497337,8.37959,212.21,212.11,15.71196103]
[1756908497730,8.37959,212.21,212.11,130.58]
[1756908499638,7.68,212.2,212.11,7.3]
[1756908502236,7.68,212.2,212.07,123.24]
[1756908502432,7.68,212.2,212.07,130.54]
[1756908503440,7.68,212.2,212.07,7.3]
[1756908503736,8.37959,212.21,212.03,115.20622575]
[1756908503942,7.68,212.2,212.04,61.0]
[1756908504639,7.68,212.2,212.03,234.18222575]
[1756908504942,8.37959,212.21,212.03,110.96222575]
[1756908505635,7.68,212.2,212.03,110.96222575]
[1756908506237,13.64697605,212.21,212.03,110.96222575]
[1756908506445,7.68,212.2,212.03,110.96222575]
[1756908506741,13.64697605,212.21,212.03,110.96222575]
[1756908506941,7.68,212.2,212.03,110.96222575]
[1756908507142,13.64697605,212.21,212.03,110.96222575]
[1756908507143,7.68,212.16,212.03,103.66222575]
[1756908507339,8.41196103,212.17,212.03,103.66222575]
[1756908507545,7.68,212.16,212.03,103.66222575]
[1756908508638,86.61196103,212.17,212.03,103.66222575]
[1756908508836,91.87934708,212.17,212.03,103.66222575]
[1756908509037,7.68,212.16,212.03,103.66222575]
[1756908509235,215.87934708,212.17,212.03,103.66222575]
[1756908509740,130.88,212.16,212.03,103.66222575]
[1756908510146,7.68,212.16,212.04,7.3]
[1756908514150,7.68,212.16,212.04,11.5437]
[1756908514345,8.37959,212.21,212.04,11.5437]
[1756908514346,7.68,212.2,212.05,7.3]
[1756908517249,8.37959,212.21,212.06,121.46]
[1756908517458,8.37959,212.21,212.09,7.3]
[1756908518654,8.37959,212.21,212.1,7.3]
[1756908519055,8.37959,212.21,212.11,7.3]
[1756908519255,8.37959,212.21,212.12,7.3]
[1756908520252,8.37959,212.21,212.13,7.3]
[1756908523551,8.37959,212.21,212.15,5.27571129]
[1756908524153,16.17959,212.21,212.07,7.78]
[1756908524456,16.17959,212.21,212.07,13.05571129]
[1756908524961,16.17959,212.21,212.07,133.57571129]
[1756908525162,16.17959,212.21,212.07,13.05571129]
[1756908526358,16.17959,212.21,212.07,7.78]
[1756908526956,16.17959,212.21,212.09,5.27571129]
[1756908527156,16.17959,212.21,212.1,7.78]
[1756908528661,8.37959,212.21,212.14,7.78]
[1756908530259,8.37959,212.21,212.11,123.04]
[1756908531366,8.37959,212.21,212.14,7.78]
[1756908534259,8.37959,212.21,212.17,5.27571129]
[1756908534469,8.37959,212.21,212.12,65.9884]
[1756908534470,8.37959,212.21,212.16,5.27571129]
[1756908534665,8.37959,212.21,212.16,9.51701129]
[1756908535064,8.37959,212.21,212.17,7.78]
[1756908535261,8.37959,212.21,212.18,7.78]
[1756908535465,8.37959,212.21,212.17,7.78]
[1756908536172,8.37959,212.21,212.14,123.0]
[1756908536368,8.37959,212.21,212.15,7.78]
[1756908537175,8.37959,212.21,212.12,123.0]
[1756908537475,7.8,212.2,212.11,7.78]
[1756908537671,8.37959,212.21,212.06,13.05571129]
[1756908537870,7.8,212.2,212.06,57.7]
[1756908538071,7.8,212.2,212.07,7.78]
[1756908539470,7.8,212.2,212.08,9.51861129]
[1756908540076,8.37959,212.21,211.96,396.54471129]
[1756908540077,7.8,212.15,211.99,11.63853501]
[1756908540274,7.8,212.15,211.99,7.78]
[1756908540472,7.8,212.15,212.02,4.2442]
[1756908540779,7.8,212.15,212.03,7.78]
[1756908543488,13.07571129,212.2,212.03,7.78]
[1756908544684,13.07571129,212.2,212.07,7.78]
[1756908547287,7.8,212.2,212.07,7.78]
[1756908547478,7.8,212.2,212.09,4.2426]
[1756908547681,7.8,212.2,212.1,7.78]
[1756908548881,7.8,212.2,212.03,7.78]
[1756908549181,7.8,212.2,212.05,7.78]
[1756908549483,7.8,212.2,212.07,7.78]
[1756908549686,8.37959,212.21,212.07,7.78]
[1756908550177,8.37959,212.21,212.1,7.78]
[1756908550379,8.37959,212.21,212.1,13.05571129]
[1756908550787,8.37959,212.21,212.1,7.78]
[1756908551186,7.8,212.2,212.1,7.78]
[1756908551484,7.8,212.2,212.07,119.6]
[1756908551888,7.8,212.2,212.08,7.46]
[1756908552089,8.37959,212.21,212.08,7.46]
[1756908552479,15.64959,212.21,212.08,7.46]
[1756908552882,15.64959,212.21,212.08,11.7028]
[1756908553888,15.64959,212.21,212.08,7.46]
[1756908554088,15.64959,212.21,212.09,123.34]
[1756908554589,15.64959,212.21,212.09,123.3]
[1756908555284,15.64959,212.21,212.1,7.46]
[1756908556880,15.64959,212.21,212.06,7.46]
[1756908557080,15.64959,212.21,212.07,5.27571129]
[1756908557288,15.64959,212.21,212.08,7.46]
[1756908557489,15.64959,212.21,212.08,4.2429]
[1756908557689,15.64959,212.21,212.09,7.46]
[1756908558289,15.64959,212.21,212.09,11.7025]
[1756908558586,8.37959,212.21,212.1,7.46]
[1756908558786,8.37959,212.21,212.13,7.46]
[1756908558980,8.37959,212.21,212.13,130.7]
[1756908559388,15.64959,212.21,212.13,130.7]
[1756908559685,7.27,212.2,212.07,7.46]
[1756908561876,7.27,212.2,212.05,104.5473177]
[1756908562077,8.37959,212.21,212.05,227.9673177]
[1756908562281,13.64697605,212.21,212.05,227.9673177]
[1756908562688,13.64697605,212.21,212.06,7.46]
[1756908562689,7.27,212.2,212.06,7.46]
[1756908564491,7.27,212.2,212.09,7.46]
[1756908565290,7.27,212.2,212.09,11.7026]
[1756908565487,8.37959,212.21,212.09,7.46]
[1756908565788,8.37959,212.21,212.12,12.73571129]
[1756908566285,8.37959,212.21,212.14,7.46]
[1756908566593,8.37959,212.21,212.16,5.27571129]
[1756908566788,8.37959,212.21,212.17,4.241]
[1756908566982,8.37959,212.21,212.18,7.46]
[1756908567286,8.37959,212.21,212.15,5.27571129]
[1756908567489,8.37959,212.21,212.15,12.73571129]
[1756908567787,8.37959,212.21,212.15,7.46]
[1756908568186,8.37959,212.21,212.12,123.28]
[1756908568984,7.27,212.2,212.12,123.28]
[1756908569190,7.27,212.2,212.09,123.38]
[1756908569489,7.27,212.2,212.1,7.46]
[1756908571396,7.27,212.2,212.11,2.17200118]
[1756908571701,2.17200118,212.19,212.11,2.17200118]
[1756908572199,8.37959,212.21,212.05,428.7873177]
[1756908572200,2.17200118,212.15,212.05,428.7873177]
[1756908572405,2.17200118,212.12,212.05,430.95931888]
[1756908572593,7.27,212.15,212.05,430.95931888]
[1756908572790,2.17200118,212.12,212.05,428.7873177]
[1756908573000,2.17200118,212.08,212.01,7.46]
[1756908573200,7.27,212.11,212.01,7.46]
[1756908573395,5.26738605,212.19,212.05,2.17200118]
[1756908573702,2.17200118,212.15,212.07,2.17200118]
[1756908574002,2.17200118,212.15,212.0,123.64]
[1756908574003,2.17200118,212.09,212.0,7.46]
[1756908574403,2.17200118,212.09,212.01,125.99200118]
[1756908574894,9.44200118,212.11,212.03,2.17200118]
[1756908575198,18.10738605,212.19,212.05,2.17200118]
[1756908575199,2.17200118,212.13,212.05,2.17200118]
[1756908575393,7.27,212.16,212.04,7.46]
[1756908575798,5.28166688,212.15,212.0,3.89693256]
[1756908576001,7.27,212.16,211.92,11.35693256]
[1756908576002,5.28166688,212.09,211.92,11.35693256]
[1756908576301,5.28166688,212.09,211.88,12.66166688]
[1756908576302,5.28166688,212.05,211.88,11.27693256]
[1756908576503,7.27,212.04,211.88,11.27693256]
[1756908576701,7.27,212.04,211.89,7.46]
[1756908577094,7.27,212.01,211.89,7.46]
[1756908577300,7.27,211.97,211.84,7.46]
[1756908578305,12.55166688,211.97,211.84,7.46]
[1756908579012,7.27,211.97,211.84,7.46]
[1756908579906,7.27,211.97,211.86,7.46]
[1756908580203,7.27,212.01,211.86,7.46]
[1756908580801,7.27,211.97,211.86,7.46]
[1756908581002,7.27,211.97,211.84,106.52]
[1756908581206,12.55166688,211.94,211.81,124.08]
[1756908582010,12.55166688,211.94,211.8,7.46]
[1756908583414,5.28166688,211.92,211.8,7.46]
[1756908583811,7.37,211.91,211.8,7.46]
[1756908584005,12.65166688,211.91,211.8,7.46]
[1756908585504,12.65166688,211.91,211.72,9.53176688]
[1756908585505,7.37,211.88,211.72,7.44]
[1756908585711,21.69,211.88,211.72,7.44]
[1756908586209,8.43362699,211.84,211.67,7.44]
[1756908586513,7.37,211.83,211.67,7.44]
[1756908587318,15.80362699,211.89,211.67,7.44]
[1756908587906,15.80362699,211.89,211.71,4.2503]
[1756908588203,15.80362699,211.89,211.73,7.44]
[1756908591911,141.00362699,211.89,211.73,7.44]
[1756908592312,15.80362699,211.89,211.73,11.6898]
[1756908592512,15.80362699,211.89,211.74,7.44]
[1756908592712,8.43362699,211.83,211.66,166.72864817]
[1756908593016,7.37,211.82,211.66,166.72864817]
[1756908593218,7.37,211.82,211.67,7.44]
[1756908594120,317.06,211.9,211.68,7.44]
[1756908594121,7.37,211.85,211.68,7.44]
[1756908594519,7.37,211.85,211.7,7.44]
[1756908596522,7.37,211.82,211.7,7.44]
[1756908597721,7.37,211.89,211.7,7.44]
[1756908598122,7.37,211.89,211.72,7.44]
[1756908600515,15.74959,211.94,211.73,7.44]
[1756908600719,15.74959,211.94,211.74,66.1069]
[1756908600918,15.74959,211.94,211.76,7.44]
[1756908601222,15.74959,211.94,211.79,7.44]
[1756908602322,15.74959,211.94,211.77,7.44]
[1756908603120,15.74959,211.94,211.76,8.43362699]
[1756908603121,8.37959,211.94,211.81,8.43362699]
[1756908603318,8.37959,211.94,211.82,7.44]
[1756908604323,8.37959,211.94,211.83,7.44]
[1756908604524,8.37959,211.94,211.85,7.44]
[1756908604716,8.37959,211.94,211.86,126.32]
[1756908604919,8.37959,211.94,211.85,7.44]
[1756908605121,8.37959,211.94,211.87,7.44]
[1756908605820,8.37959,211.94,211.88,126.32]
[1756908606221,8.37959,211.94,211.87,133.72]
[1756908606526,8.37959,211.94,211.87,7.44]
[1756908607029,8.37959,211.94,211.82,317.26]
[1756908608129,8.37959,211.94,211.83,7.44]
[1756908609018,8.37959,211.94,211.87,4.2471]
[1756908609227,8.37959,211.94,211.88,133.58]
[1756908609431,8.37959,211.94,211.88,126.14]
[1756908609922,8.37959,211.94,211.89,7.44]
[1756908610823,8.37959,211.94,211.88,126.14]
[1756908611228,8.37959,211.94,211.89,7.44]
[1756908611925,8.37959,211.94,211.89,7.56]
[1756908612326,8.37959,211.94,211.9,4.2464]
[1756908612526,8.37959,211.94,211.92,7.56]
[1756908612730,8.37959,211.94,211.91,0.48]
[1756908613024,7.47,212.13,211.93,7.56]
[1756908613429,7.47,212.13,211.9,8.43362699]
[1756908613430,7.47,212.13,211.95,7.56]
[1756908614025,8.29101613,212.13,211.91,7.56]
[1756908614227,7.47,212.08,211.91,7.56]
[1756908614420,8.43362699,212.09,211.92,46.98]
[1756908614622,7.47,212.1,211.91,7.56]
[1756908615034,7.47,212.1,211.92,11.74]
[1756908615232,7.47,212.1,211.93,10.92]
[1756908615433,0.82101613,212.13,211.93,10.92]
[1756908615728,7.47,212.09,211.93,10.92]
[1756908616032,7.47,212.09,211.91,7.56]
[1756908616227,7.47,212.09,211.92,20.98]
[1756908616429,8.43362699,212.1,211.92,20.98]
[1756908616827,7.47,212.09,211.92,20.98]
[1756908617023,8.43362699,212.1,211.92,20.98]
[1756908617223,7.47,212.09,211.93,43.46]
[1756908617429,8.43362699,212.1,211.92,58.02]
[1756908617825,7.47,212.09,211.92,49.5]
[1756908618028,7.47,212.09,211.91,7.56]
[1756908618231,8.43362699,212.1,211.91,13.6]
[1756908618734,7.47,212.09,211.91,13.6]
[1756908618933,7.47,212.09,211.92,7.56]
[1756908623229,7.47,212.09,211.94,4.2455]
[1756908623427,325.69362699,212.14,211.92,7.56]
[1756908623428,317.26,212.14,211.95,7.56]
[1756908623633,324.73,212.14,211.95,7.56]
[1756908623834,7.47,212.14,211.95,7.56]
[1756908624037,7.47,212.14,211.96,7.56]
[1756908624634,7.47,212.14,211.97,4.2451]
[1756908624837,7.47,212.14,211.98,7.56]
[1756908625034,126.72089024,212.19,211.99,47.2]
[1756908625235,7.47,212.18,212.0,7.56]
[1756908627133,7.47,212.18,212.01,7.56]
[1756908628136,7.47,212.22,212.03,7.56]
[1756908628940,7.47,212.2,212.03,7.56]
[1756908630134,7.47,212.17,212.03,7.56]
[1756908630838,8.43362699,212.18,211.98,7.56]
[1756908631031,7.47,212.12,211.98,7.56]
[1756908633341,7.47,212.12,211.97,443.68]
[1756908633342,8.43362699,212.13,211.97,317.06]
[1756908633844,8.43362699,212.08,211.94,134.18]
[1756908634035,7.47,212.07,211.94,134.18]
[1756908634239,7.47,212.07,211.86,4.2471]
[1756908634439,7.47,212.07,211.87,7.56]
[1756908634634,8.43362699,212.08,211.88,126.66]
[1756908635238,8.43362699,212.03,211.88,126.66]
[1756908635438,8.43362699,212.03,211.87,134.18]
[1756908636141,7.47,211.97,211.85,316.96]
[1756908637444,8.43362699,211.98,211.82,134.12]
[1756908637745,7.47,211.97,211.82,126.56]
[1756908637949,7.47,211.92,211.78,7.56]
[1756908638946,7.47,211.92,211.75,126.56]
[1756908639346,8.43362699,211.93,211.75,126.56]
[1756908639540,7.47,211.87,211.75,126.56]
[1756908641348,7.47,211.87,211.76,7.56]
[1756908641650,8.43362699,211.91,211.76,7.56]
[1756908642049,7.17,211.92,211.76,7.56]
[1756908642348,7.17,211.92,211.78,7.82]
[1756908643849,325.47362699,211.96,211.69,7.82]
[1756908643850,7.17,211.88,211.69,7.82]
[1756908644047,96.9,211.87,211.69,7.82]
[1756908644252,8.43362699,211.89,211.69,7.82]
[1756908644253,7.17,211.86,211.69,7.82]
[1756908647355,7.17,211.95,211.73,7.82]
[1756908647548,7.17,211.89,211.74,80.92]
[1756908647956,7.17,211.89,211.75,7.82]
[1756908648754,7.17,211.89,211.75,12.0693]
[1756908648959,5.29622582,211.93,211.77,7.82]
[1756908649757,7.17,211.92,211.77,7.82]
[1756908653367,23.01622582,211.93,211.77,7.82]
[1756908653368,7.17,211.88,211.77,7.82]
[1756908654162,7.17,211.94,211.77,7.82]
[1756908654370,12.46622582,211.94,211.77,7.82]
[1756908654966,7.17,211.94,211.77,7.82]
[1756908655361,7.17,211.94,211.79,4.2484]
[1756908655567,7.17,211.94,211.77,7.82]
[1756908656859,7.17,211.9,211.77,7.82]
[1756908657267,7.17,211.9,211.79,7.82]
[1756908658573,5.29622582,211.89,211.79,7.82]
[1756908659676,5.29622582,211.89,211.74,88.74]
[1756908659677,7.17,211.88,211.74,88.74]
[1756908659874,7.17,211.88,211.74,7.82]
[1756908660077,7.17,211.84,211.74,7.82]
[1756908660277,7.17,211.84,211.7,7.82]
[1756908660785,7.17,211.8,211.64,0.8220343]
[1756908660977,7.17,211.8,211.65,7.82]
[1756908661277,7.17,211.76,211.65,7.82]
[1756908662177,5.29622582,211.74,211.61,7.82]
[1756908662479,7.17,211.73,211.61,7.82]
[1756908664080,5.29622582,211.75,211.61,7.82]
[1756908665275,5.29622582,211.75,211.62,4.2518]
[1756908665480,5.29622582,211.75,211.63,7.82]
[1756908665679,7.17,211.77,211.63,7.82]
[1756908665876,7.17,211.77,211.64,4.2516]
[1756908666087,7.17,211.77,211.65,7.82]
[1756908666485,317.26,211.88,211.67,7.82]
[1756908666486,12.46622582,211.81,211.67,7.82]
[1756908666987,7.17,211.76,211.67,7.82]
[1756908668185,12.46622582,211.82,211.67,7.82]
[1756908668580,317.26,211.88,211.67,7.82]
[1756908668581,7.17,211.77,211.67,7.82]
[1756908668976,7.17,211.77,211.62,7.82]
[1756908669976,5.29622582,211.74,211.62,7.82]
[1756908670177,7.17,211.73,211.62,7.82]
[1756908670576,7.17,211.73,211.62,12.072]
[1756908670784,5.29622582,211.78,211.62,12.072]
[1756908670785,7.17,211.77,211.62,12.072]
[1756908671182,7.17,211.77,211.63,7.82]
[1756908671481,14.15,211.87,211.63,7.82]
[1756908671482,7.17,211.73,211.63,7.82]
[1756908673580,5.29622582,211.71,211.59,75.1]
[1756908673881,5.29622582,211.71,211.58,7.34]
[1756908673882,7.72,211.7,211.58,7.34]
[1756908674592,5.29622582,211.69,211.58,7.34]
[1756908676287,7.72,211.68,211.58,7.34]
[1756908678389,7.72,211.68,211.52,7.34]
[1756908678783,7.72,211.64,211.52,7.34]
[1756908680090,5.29622582,211.65,211.52,7.34]
[1756908680292,7.72,211.64,211.52,7.34]
[1756908680893,7.72,211.63,211.52,7.34]
[1756908683394,13.01622582,211.6,211.46,103.14738722]
[1756908683594,13.01622582,211.6,211.47,7.34]
[1756908685395,7.72,211.6,211.47,7.34]
[1756908685695,5.29622582,211.63,211.47,7.34]
[1756908685993,7.72,211.64,211.46,103.14738722]
[1756908685994,7.72,211.64,211.5,7.34]
[1756908688300,317.5,211.73,211.56,7.34]
[1756908688496,5.29622582,211.75,211.58,4.2526]
[1756908688696,7.72,211.74,211.59,7.34]
[1756908689494,7.72,211.74,211.6,4.2523]
[1756908689797,7.72,211.74,211.61,7.34]
[1756908693303,13.01622582,211.74,211.61,7.34]
[1756908694406,73.68,211.8,211.46,109.18649787]
[1756908694407,7.72,211.69,211.56,7.34]
[1756908694807,7.72,211.65,211.56,7.34]
[1756908695607,7.72,211.65,211.49,7.34]
[1756908696695,7.72,211.61,211.49,7.34]
[1756908699001,7.72,211.66,211.49,7.34]
[1756908699900,7.72,211.66,211.52,7.34]
[1756908700108,7.72,211.7,211.53,7.34]